{"text_format":"1","workbook":"xlsx","n_sheets":6,"sheets":["Enable Content","Balance Sheet","Grain, Feed and Lvstk Addenda","Machinery Addenda","Titled Vehicle Addenda","Module2"],"not_rendered":{"charts":0,"images":1,"macros":1,"external_links":0,"defined_names":4,"comments":0,"pivot_tables":0},"unopened":[{"sheet":"Module2","index":5,"reason":"part_missing"}],"bounds":{"document_bytes":16777216,"sheet_cells":100000,"rows_first":2000,"rows_last":500,"rows_between":2000,"halvings":0,"cell_chars":16384,"cell_head_chars":4096},"cells_cut":0,"cells_raw":0,"read":"whole","date_system":"1900"}

{"sheet":"Enable Content","index":0,"n_rows":8,"n_cols":2,"rows_kept":8,"cut":false,"hidden":false,"merged":[[4,1,5,6],[7,1,7,6]]}
[]
[]
[]
[]
[null,"First Click \"Enable Macros\" or Enable Content\" above"]
[]
[]
[null,"The buttons within the spreadsheets run macros which allow you to print statement pages and copy back depreciated values for equipment. The yellow highlighted cells can be edited. The 'cut' and 'drag/drop' functions have been disabled to ensure that the formulas calculate correctly."]

{"sheet":"Balance Sheet","index":1,"n_rows":112,"n_cols":66,"rows_kept":112,"cut":false,"hidden":true,"merged":[[9,18,9,19],[34,31,34,32],[81,23,81,24],[81,31,81,32],[94,23,94,24],[95,23,95,24],[94,31,94,32],[95,31,95,32],[93,23,93,24],[51,31,51,32],[47,31,47,32],[50,31,50,32],[44,31,44,32],[45,31,45,32],[46,31,46,32],[52,31,52,32],[82,31,82,32],[88,31,88,32],[89,31,89,32],[90,31,90,32],[91,31,91,32],[75,26,75,30],[77,31,77,32],[70,23,70,25],[27,31,27,32],[18,23,18,25],[19,23,19,25],[45,23,45,24],[46,23,46,24],[28,31,28,32],[29,31,29,32],[30,31,30,32],[31,31,31,32],[32,31,32,32],[33,31,33,32],[30,23,30,24],[31,23,31,24],[32,23,32,24],[33,23,33,24],[25,31,25,32],[9,23,9,25],[10,23,10,25],[11,23,11,25],[12,23,12,25],[28,23,28,24],[29,23,29,24],[20,23,20,25],[16,23,16,25],[17,23,17,25],[46,15,46,16],[36,15,36,16],[35,15,35,16],[52,18,52,19],[47,15,47,16],[50,15,50,16],[34,23,34,24],[35,23,35,24],[36,23,36,24],[37,23,37,24],[48,18,48,19],[49,18,49,19],[48,15,48,16],[49,15,49,16],[42,15,42,16],[46,18,46,19],[47,18,47,19],[38,23,38,24],[39,23,39,24],[40,23,40,24],[41,23,41,24],[42,23,42,24],[43,23,43,24],[44,23,44,24],[24,15,24,16],[29,15,29,16],[30,15,30,16],[31,15,31,16],[38,15,38,16],[39,15,39,16],[40,15,40,16],[25,15,25,16],[26,15,26,16],[28,15,28,16],[27,15,27,16],[52,15,52,16],[82,23,82,24],[88,23,88,24],[89,23,89,24],[90,23,90,24],[91,23,91,24],[92,23,92,24],[109,23,109,24],[50,18,50,19],[51,18,51,19],[79,23,79,24],[99,23,99,24],[76,23,76,24],[77,23,77,24],[72,23,72,25],[61,23,61,25],[62,23,62,25],[66,23,66,25],[67,23,67,25],[63,23,63,25],[64,23,64,25],[65,23,65,25],[68,23,68,25],[69,23,69,25],[109,31,109,32],[78,23,78,25],[80,23,80,24],[98,23,98,24],[103,23,103,24],[104,23,104,24],[80,31,80,32],[98,31,98,32],[103,31,103,32],[107,23,107,24],[107,31,107,32],[108,23,108,24],[108,31,108,32],[105,23,105,24],[105,31,105,32],[106,23,106,24],[106,31,106,32],[78,31,78,32],[79,31,79,32],[99,31,99,32],[93,31,93,32],[92,31,92,32],[101,23,101,24],[100,31,100,32],[0,54,0,60],[4,44,4,45],[0,0,0,4],[0,7,0,12],[0,23,0,32],[5,44,5,45],[0,35,0,40],[0,43,0,51],[5,7,5,8],[3,18,3,19],[4,18,4,19],[5,18,5,19],[3,7,3,8],[4,7,4,8],[5,23,5,25],[4,23,4,25],[3,23,3,25],[0,15,0,20],[4,36,4,37],[19,7,19,8],[20,7,20,8],[7,7,7,8],[8,7,8,8],[9,7,9,8],[10,7,10,8],[11,7,11,8],[12,7,12,8],[13,7,13,8],[14,7,14,8],[21,7,21,8],[22,7,22,8],[23,7,23,8],[24,7,24,8],[25,7,25,8],[26,7,26,8],[100,23,100,24],[51,23,51,24],[52,23,52,24],[58,23,58,25],[59,23,59,25],[60,23,60,25],[24,23,24,24],[25,23,25,24],[26,23,26,24],[50,23,50,24],[27,23,27,24],[48,23,48,24],[49,23,49,24],[23,15,23,16],[22,15,22,16],[37,15,37,16],[41,15,41,16],[51,15,51,16],[101,31,101,32],[59,36,59,37],[60,35,60,37],[24,31,24,32],[96,35,96,37],[23,26,23,30],[26,31,26,32],[47,23,47,24],[13,23,13,25],[14,23,14,25],[15,23,15,25],[35,31,35,32],[36,31,36,32],[37,31,37,32],[38,31,38,32],[39,31,39,32],[40,31,40,32],[41,31,41,32],[42,31,42,32],[43,31,43,32],[71,23,71,25],[57,26,57,30],[48,31,48,32],[49,31,49,32],[9,50,9,51],[46,43,46,44],[47,43,47,44],[42,45,42,47],[43,43,43,44],[46,48,46,50],[47,48,47,50],[10,50,10,51],[9,44,9,45],[10,44,10,45],[11,50,11,51],[41,43,41,44],[43,45,43,47],[46,45,46,47],[47,45,47,47],[42,43,42,44],[52,47,52,50],[53,47,53,50],[51,43,51,45],[52,43,52,45],[53,43,53,45],[42,48,42,50],[43,48,43,50],[44,43,44,44],[45,43,45,44],[44,45,44,47],[45,45,45,47],[44,48,44,50],[45,48,45,50],[51,47,51,50],[7,0,7,1],[7,3,7,4],[2,54,3,60],[3,44,3,45],[4,50,4,51],[5,50,5,51],[6,50,6,51],[7,50,7,51],[8,50,8,51],[6,44,6,45],[7,44,7,45],[8,44,8,45],[6,7,6,8],[2,26,2,30],[6,18,6,19],[7,18,7,19],[8,18,8,19],[6,23,6,25],[7,23,7,25],[8,23,8,25],[65,50,65,51],[66,50,66,51],[58,44,58,45],[59,44,59,45],[59,50,59,51],[60,50,60,51],[61,44,61,45],[61,50,61,51],[63,50,63,51],[63,44,63,45],[65,44,65,45],[64,44,64,45],[64,50,64,51],[62,44,62,45],[62,50,62,51],[106,48,106,50],[99,43,99,44],[100,43,100,44],[100,45,100,47],[100,48,100,50],[109,43,109,44],[109,45,109,47],[109,48,109,50],[101,43,101,44],[101,45,101,47],[101,48,101,50],[108,43,108,44],[108,45,108,47],[108,48,108,50],[102,43,102,44],[102,45,102,47],[102,48,102,50],[107,43,107,44],[107,45,107,47],[107,48,107,50],[103,43,103,44],[106,43,106,44],[103,45,103,47],[106,45,106,47],[104,45,104,47],[105,45,105,47],[104,43,104,44],[105,43,105,44],[104,48,104,50],[105,48,105,50],[83,23,83,24],[84,23,84,24],[85,23,85,24],[86,23,86,24],[87,23,87,24],[83,31,83,32],[84,31,84,32],[85,31,85,32],[86,31,86,32],[87,31,87,32],[103,48,103,50],[102,23,102,24],[102,31,102,32],[104,31,104,32],[96,23,96,24],[97,23,97,24],[96,31,96,32],[97,31,97,32]]}
["Agricultural Financial Statement",null,null,null,null,null,null,"Agricultural Financial Statement",null,null,null,null,null,null,null,"Agricultural Financial Statement",null,null,null,null,null,null,null,"Agricultural Financial Statement",null,null,null,null,null,null,null,null,null,null,null,"Agricultural Financial Statement",null,null,null,null,null,null,null,"Agricultural Financial Statement",null,null,null,null,null,null,null,null,null,null,"Agricultural Financial Statement",null,null,null,null,null,null,null,null,null,"Depreciation Routine for Equipment and Titled vehicles:"]
[null,null,null,null,null,null,null,null,null,null,null,null,null,null,null,null,null,null,null,null,null,null,null,null,null,null,null,null,null,null,null,null,null,null,null,null,null,null,null,null,null,null,null,null,null,null,null,null,null,null,null,null,null,null,null,null,null,null,null,null,null,null,null,null,"Percentage to depreciate:",0.1]
[null,null,null,"Statement Date:",null,null,null,"Grain and Feed held to sell",null,null,null,null,null,null,null,"Prepaid Expenses/Investment in Crops:",null,null,null,null,null,null,null,"Real Estate Owned",null,null,"Acres",null,null,null,null,null,null,null,null,"Machinery and Equipment",null,null,null,null,null,null,null,"Notes Payable (Short Term)",null,null,null,null,null,null,null,null,null,null,"Trend Analysis Report",null,null,null,null,null,null,null,null,null,null,"Depreciated"]
["Name:",null,null,"Cell Phone #",null,null,null,"Description",null,"Quantity","Unit","$ / Unit","Total",null,null,"Expense","Crop","Acres","$ / Acre",null,"$ Invested",null,null,null,null,null,null,"Irrig.","Dry",null,null,"Value/",null,null,null,null,null,null,"Purchase","Current",null,null,null,null,null,null,"Maturity","Interest","Accrued","Current",null,null,null,null,null,null,null,null,null,null,null,null,null,null,null,"Values"]
["Name:",null,null,"Cell Phone #",null,null,null,null,null,null,null,null,{"$f":"J5*L5","v":0},null,null,null,null,null,null,null,null,null,null,"Description",null,null,"Total","Crop","Crop","Pasture","Other","Acre","Value",null,null,"Year","Description",null,"Cost","Value","Liens",null,null,"To Whom","Purpose",null,"Date","Rate","Interest","Balance","Comments",null,null,null,null,null,null,null,null,null,null,null,null,null,"Machinery and Equipment","(rounded to 100's)"]
["Address:",null,null,"Home Phone #",null,null,null,null,null,null,null,null,0,null,null,null,null,null,null,null,null,null,null,null,null,null,null,null,null,null,null,null,{"$f":"AF6*AA6","v":0},null,null,null,null,null,null,null,null," ",null,null,null,null,null,null,null,null,null,null,null,null,"Name:",{"$f":"B4","v":0},null,null,null,null,null,null,null,null,{"$f":"+AK6","v":0},{"$f":"ROUND((1-$BN$2)*AN6,-2)","v":0}]
[null,null,null,null,null,null,null,null,null,null,null,null,0,null,null,null,null,null,null,null,null,null,null,null,null,null,null,null,null,null,null,null,{"$f":"AA7*AF7","v":0},null,null,null,null,null,null,null,null," ",null,null,null,null,null,null,null,null,null,null,null,null,"Name:",{"$f":"B5","v":0},null,null,null,null,null,null,null,null,{"$f":"+AK7","v":0},{"$f":"ROUND((1-$BN$2)*AN7,-2)","v":0}]
["Assets",null,null,"Liabilities",null,null,null,null,null,null,null,null,0,null,null,null,null,null,null,null,null,null,null,null,null,null,null,null,null,null,null,null,0,null,null,null,null,null,null,null,null," ",null,null,null,null,null,null,null,null,null,null,null,null,"Period Ending",{"$f":"E3","v":"00:00:00"},"00:00:00","00:00:00",null,null,null,null,null,null,0,{"$f":"ROUND((1-$BN$2)*AN8,-2)","v":0}]
[null,null,null,null,null,null,null,null,null,null,null,null,0,null,null,null,null,null,null,null,null,null,null,null,null,null,null,null,null,null,null,null,0,null,null,null,null,null,null,null,null," ",null,null,null,null,null,null,null,null,null,null,null,null,null,null,null,null,null,null,null,null,null,null,0,0]
["Current Assets:","Dollars",null,"Current Liabilities:","Dollars",null,null,null,null,null,null,null,0,null,null,null,null,null,null,null,null,null,null,null,null,null,null,null,null,null,null,null,0,null,null,null,null,null,null,null,null," ",null,null,null,null,null,null,null,null,null,null,null,null,"Current Assets (CA)",{"$f":"B18","v":0},0,0,null,null,null,null,null,null,0,0]
["Cash & Checking",null,null,"Short Term Notes",{"$f":"+AX67","v":0},null,null,null,null,null,null,null,0,null,null,null,"Total Amount Invested",null,null,null,{"$f":"SUM(U5:U10)","v":0},null,null,null,null,null,null,null,null,null,null,null,0,null,null,null,null,null,null,null,null," ",null,null,null,null,null,null,null,null,null,null,null,null,"- Current Liabilities (CL)",{"$f":"E18","v":0},0,0,null,null,null,null,null,null,0,0]
["Grain & Feed to sell",{"$f":"M17","v":0},null,null,null,null,null,null,null,null,null,null,0,null,null,null,null,null,null,null,null,null,null,null,null,null,null,null,null,null,null,null,0,null,null,null,null,null,null,null,null," ",null,null,null,null,null,{"$f":"IF(AX12=AX67,\"Total\",\"Subtotal - see addendum for Total\")","v":"Total"},{"$f":"SUM(AW6:AW11)","v":0},{"$f":"SUM(AX6:AX11)","v":0},null,null,null,null," =  Working Capital (WC)",{"$f":"+BD10-BD11","v":0},0,0,null,null,null,null,null,null,0,0]
["Grain & Feed to feed",{"$f":"M29","v":0},null,null,null,null,null,null,null,null,null,null,0,null,null,"Accounts Receivable",null,null,null,null,null,null,null,null,null,null,null,null,null,null,null,null,0,null,null,null,null,null,null,null,null," ",null,null,null,null,null,null,null,null,null,null,null,null,"Intermediate Assets",{"$f":"B26","v":0},0,0,null,null,null,null,null,null,0,0]
["Market Livestock",{"$f":"M42","v":0},null,"Current portion of term notes",{"$f":"+AY85+AY97","v":0},null,null,null,null,null,null,null,0,null,null,"Name of Payor","Purpose","Terms","Orig. Amt.","Date Due","Amt. Due",null,null,null,null,null,null,null,null,null,null,null,0,null,null,null,null,null,null,null,null," ",null,"Intermediate Term Debt",null,null,null,null,null,null,null,null,null,null,"Intermediate Liabilities",{"$f":"E26","v":0},0,0,null,null,null,null,null,null,0,0]
["Prepaid Expenses",{"$f":"U11","v":0},null,"Accrued Interest",{"$f":"+AW67+AW85+AW97","v":0},null,null,null,null,null,null,null,0,null,null,null,null,null,null,null,null,null,null,null,null,null,null,null,null,null,null,null,0,null,null,null,null,null,null,null,null," ",null,null,null,"Pymt.","Pymt.","Interest","Accrued","Current","Due w/in","Due Beyond",null,null,"Total Assets (TA)",{"$f":"B34","v":0},0,0,null,null,null,null,null,null,0,0]
["Receivables (Short Term)",{"$f":"U20","v":0},null,"Accounts Payable",{"$f":"+AZ111","v":0},null,null,"Subtotals from Grain, Feed and Market Livestock Addenda page",null,null,null,null,{"$f":"'Grain, Feed and Lvstk Addenda'!F29","v":0},null,null,null,null,null,null,null,null,null,null,null,null,null,null,null,null,null,null,null,0,null,null,null,null,null,null,null,null," ",null,"To Whom","Purpose","Amt/Freq","Dates","Rate","Interest","Balance","12 Mos.","12 Mos.",null,null,"- Total Liabilities (TL)",{"$f":"E32","v":0},0,0,null,null,null,null,null,null,0,0]
["Savings & Investments",{"$f":"U33","v":0},null,"Accrued Taxes / Rents",{"$f":"SUM(AU52:AU54,AZ52:AZ54)","v":0},null,null,null,"Total Value of Grain and Feed held to sell",null,null,null,{"$f":"SUM(M5:M16)","v":0},null,null,null,null,null,null,null,null,null,null,null,null,null,null,null,null,null,null,null,{"$f":"AA17*AF17","v":0},null,null,null,null,null,null,null,null," ",null,null,null,null,null,null,null,null,null,{"$f":"AX17-AY17","v":0},null,null,"  = Net Worth (NW)",{"$f":"BD15-BD16","v":0},0,0,null,null,null,null,null,null,0,0]
["Total Current Assets",{"$f":"SUM(B11:B17)","v":0},null,"Total Current Liabilities",{"$f":"SUM(E11:E17)","v":0},null,null,null,null,null,null,null,null,null,null,null,null,null,null,null,null,null,null,null,null,null,null,null,null,null,null,null,0,null,null,null,null,null,null,null,null," ",null,null,null,null,null,null,null,null,null,0,null,null,"+/- Reevaluations:",null,null,null,null,null,null,null,null,null,0,0]
[null,null,null,null,null,null,null,"Grain and Feed held to feed",null,null,null,null,null,null,null,null,null,null,null,null,null,null,null,null,null,null,null,null,null,null,null,null,0,null,null,null,null,null,null,null,null," ",null,null,null,null,null,null,null,null,null,0,null,null,"     Breeding Stock",null,null,null,null,null,null,null,null,null,0,0]
["Intermediate Assets:",null,null,"Intermediate Liabilities:",null,null,null,"Description",null,"Quantity","Unit","$ / Unit","Total",null,null,null,"Total Accounts Receivable",null,null,null,{"$f":"SUM(U15:U19)","v":0},null,null,null,null,null,null,null,null,null,null,null,{"$f":"AA20*AF20","v":0},null,null,null,null,null,null,null,null," ",null,null,null,null,null,null,null,null,null,0,null,null,"     Machinery & Equip",null,null,null,null,null,null,null,null,null,0,0]
["Machinery & Equipment",{"$f":"+AN94","v":0},null,"Intermediate Notes ",{"$f":"+AZ85","v":0},null,null,null,null,null,null,null,{"$f":"J21*L21","v":0},null,null,null,null,null,null,null,null,null,null,null,null,null,null,null,null,null,null,null,0,null,null,null,null,null,null,null,null," ",null,null,null,null,null,null,null,null,null,0,null,null,"     Real Estate",null,null,null,null,null,null,null,null,null,0,0]
["Titled Vehicles",{"$f":"+AN111","v":0},null,null,null,null,null,null,null,null,null,null,{"$f":"J22*L22","v":0},null,null,"Savings and Marketable Investments",null,null,null,null,null,null,null,null,null,{"$f":"IF(AG22=AG74,\"Totals\",\"Subtotals - see addendum for Totals\")","v":"Totals"},{"$f":"SUM(AA6:AA21)","v":0},{"$f":"SUM(AB6:AB21)","v":0},{"$f":"SUM(AC6:AC21)","v":0},{"$f":"SUM(AD6:AD21)","v":0},{"$f":"SUM(AE6:AE21)","v":0},null,{"$f":"SUM(AG6:AG21)","v":0},null,null,null,null,null,null,null,null," ",null,null,null,null,null,null,null,null,null,0,null,null,"     Other                       ",null,null,null,null,null,null,null,null,null,0,0]
["Breeding Livestock",{"$f":"M54","v":0},null,null,null,null,null,null,null,null,null,null,0,null,null,null,null,"Name of","Purchase","Maturity","Current",null,null,null,null,null,null,null,null,null,null,null,null,null,null,null,null,null,null,null,null," ",null,null,null,null,null,null,null,null,null,0,null,null,"Earned Change in NW",{"$f":"+BD17-BE17-SUM(BD18:BD22)","v":0},0,0,null,null,null,null,null,null,0,0]
["Invest. not readily marketable",{"$f":"U44","v":0},null,null,null,null,null,null,null,null,null,null,0,null,null,"Type of Investment",null,"Issuer","Price","Date","Value",null,null,"Real Estate Rented",null,null,"Acres",null,null,null,null,null,null,null,null,null,null,null,null,null,null," ",null,null,null,null,null,null,null,null,null,0,null,null,null,null,null,null,null,null,null,null,null,null,0,0]
["Cash Value of Life Ins.",{"$f":"U54","v":0},null,null,null,null,null,null,null,null,null,null,0,null,null,null,null,null,null,null,null,null,null,null,null,null,null,"Irrig.","Dry",null,null,null,null,null,null,null,null,null,null,null,null," ",null,null,null,null,null,null,null,null,null,0,null,null," T&CB Debt (D)   ",null,null,null,null,null,null,null,null,null,0,0]
["Total Intermediate Assets",{"$f":"SUM(B21:B25)","v":0},null,"Total Intermediate Liab.",{"$f":"SUM(E21:E25)","v":0},null,null,null,null,null,null,null,0,null,null,null,null,null,null,null,null,null,null,"Description",null,"Owner's Name","Total","Crop","Crop","Pasture","Other","Rental Terms",null,null,null,null,null,null,null,null,null," ",null,null,null,null,null,null,null,null,null,0,null,null,"-  T&CB Collateral (C) ",null,null,null,null,null,null,null,null,null,0,0]
[null,null,null,null,null,null,null,null,null,null,null,null,0,null,null,null,null,null,null,null,null,null,null,null,null,null,null,null,null,null,null,null,null,null,null,null,null,null,null,null,null," ",null,null,null,null,null,{"$f":"IF(AX27=AX85,\"Total\",\"Subtotal - see addendum for Total\")","v":"Total"},{"$f":"SUM(AW17:AW26)","v":0},{"$f":"SUM(AX17:AX26)","v":0},{"$f":"SUM(AY17:AY26)","v":0},{"$f":"SUM(AZ17:AZ26)","v":0},null,null,"= T&CB Collateral Margin",{"$f":"BD26-BD25","v":0},0,0,null,null,null,null,null,null,0,0]
["Long Term Assets:",null,null,"Long Term Liabilities:",null,null,null,"Subtotals from Grain, Feed and Market Livestock Addenda page",null,null,null,null,{"$f":"'Grain, Feed and Lvstk Addenda'!F41","v":0},null,null,null,null,null,null,null,null,null,null,null,null,null,null,null,null,null,null,null,null,null,null,null,null,null,null,null,null," ",null,null,null,null,null,null,null,null,null,null,null,null," Loan to Value (D ÷ C)",{"$f":"+BD25/BD26","v":{"$error":"#DIV/0!"}},null,null,0,null,null,null,null,null,0,0]
["Farm Real Estate",{"$f":"+AG74","v":0},null,"Long Term Notes",{"$f":"+AZ97","v":0},null,null,null,"Total Value of Grain and Feed held to feed",null,null,null,{"$f":"SUM(M21:M28)","v":0},null,null,null,null,null,null,null,null,null,null,null,null,null,null,null,null,null,null,null,null,null,null,null,null,null,null,null,null," ",null,"Long Term Debt",null,null,null,null,null,null,null,null,null,null,null,null,null,null,null,null,null,null,null,null,0,0]
["Non Farm Real Estate",null,null,null,null,null,null,null,null,null,null,null,null,null,null,null,null,null,null,null,null,null,null,null,null,null,null,null,null,null,null,null,null,null,null,null,null,null,null,null,null," ",null,null,null,"Pymt.","Pymt.","Interest","Accrued","Current","Due w/in","Due Beyond",null,null,"Current Ratio (CA ÷ CL)",{"$f":"BD10/BD11","v":{"$error":"#DIV/0!"}},{"$f":"BE10/BE11","v":{"$error":"#DIV/0!"}},{"$f":"BF10/BF11","v":{"$error":"#DIV/0!"}},{"$f":"BG10/BG11","v":{"$error":"#DIV/0!"}},{"$f":"BH10/BH11","v":{"$error":"#DIV/0!"}},{"$f":"BI10/BI11","v":{"$error":"#DIV/0!"}},null,null,null,0,0]
[null,null,null,"Total Long Term Liab.",{"$f":"SUM(E29:E30)","v":0},null,null,"Market Livestock",null,null,null,null,null,null,null,null,null,null,null,null,null,null,null,null,null,null,null,null,null,null,null,null,null,null,null,null,null,null,null,null,null," ",null,"To Whom","Purpose","Amt/Freq","Dates","Rate","Interest","Balance","12 Mos.","12 Mos.",null,null,"Debt/Asset Ratio (TL ÷ TA)",{"$f":"BD16/BD15","v":{"$error":"#DIV/0!"}},{"$error":"#DIV/0!"},{"$error":"#DIV/0!"},{"$error":"#DIV/0!"},{"$error":"#DIV/0!"},{"$error":"#DIV/0!"},null,null,null,0,0]
[null,null,null,"Total Liabilities",{"$f":"E18+E26+E31","v":0},null,null,"# of Hd.","Type of Livestock","Average Wght.","$ / CWT","$ / Head","Total",null,null,null,null,null,null,null,null,null,null,null,null,null,null,null,null,null,null,null,null,null,null,null,null,null,null,null,null," ",null,null,null,null,null,null,null,null,null,{"$f":"AX32-AY32","v":0},null,null,"ROE (Earned change ÷ NW)",{"$f":"BD23/BE17","v":{"$error":"#DIV/0!"}},{"$error":"#DIV/0!"},{"$error":"#DIV/0!"},{"$error":"#DIV/0!"},{"$error":"#DIV/0!"},null,null,null,null,0,0]
["Total Long Term Assets",{"$f":"SUM(B29:B32)","v":0},null,"Net Worth",{"$f":"B34-E32","v":0},null,null,null,null,null,null,{"$f":"+J33*K33/100","v":0},{"$f":"H33*L33","v":0},null,null,null,"Total Value of Marketable Investments",null,null,null,{"$f":"SUM(U25:U32)","v":0},null,null,null,null,null,null,null,null,null,null,null,null,null,null,null,null,null,null,null,null," ",null,null,null,null,null,null,null,null,null,0,null,null,null,null,null,null,null,null,null,null,null,null,0,0]
["Total Assets",{"$f":"B18+B26+B33","v":0},null,"Total Liab. & Net Worth",{"$f":"E32+E33","v":0},null,null,null,null,null,null,{"$f":"J34*K34/100","v":0},{"$f":"H34*L34","v":0},null,null,null,null,null,null,null,null,null,null,null,null,null,null,null,null,null,null,null,null,null,null,null,null,null,null,null,null," ",null,null,null,null,null,null,null,null,null,0,null,null,null,null,null,null,null,null,null,null,null,null,0,0]
["Type of Entity (Ind, Jt, Corp,Prt)",null,null,"Are any accounts past due?",null,null,null,null,null,null,null,0,0,null,null,"Investments Not Readily Marketable Investments",null,null,null,null,null,null,null,null,null,null,null,null,null,null,null,null,null,null,null,null,null,null,null,null,null," ",null,null,null,null,null,null,null,null,null,0,null,null,null,null,null,null,null,null,null,null,null,null,0,0]
["Insurance on Equipment?",null,null,"Do you have health insurance?",null,null,null,null,null,null,null,0,0,null,null,null,null,"Name of","Purchase","Value","Current",null,null,null,null,null,null,null,null,null,null,null,null,null,null,null,null,null,null,null,null," ",null,null,null,null,null,null,null,null,null,0,null,null,null,null,null,null,null,null,null,null,null,null,0,0]
["Insurance on Buildings?",null,null,"       Deductible Amount:",null,null,null,null,null,null,null,0,0,null,null,"Type of Investment",null,"Issuer","Price","Last Yr","Value",null,null,null,null,null,null,null,null,null,null,null,null,null,null,null,null,null,null,null,null," ",null,null,null,null,null,null,null,null,null,0,null,null,null,null,null,null,null,null,null,null,null,null,0,0]
["Insurance on Crops?",null,null,"Will/estate planning?",null,null,null,null,null,null,null,0,0,null,null,null,null,null,null,null,null,null,null,null,null,null,null,null,null,null,null,null,null,null,null,null,null,null,null,null,null," ",null,null,null,null,null,null,null,null,null,0,null,null,null,null,null,null,null,null,null,null,null,null,0,0]
["Liability Insurance Coverage?",null,null,"Number of Dependents",null,null,null,null,null,null,null,0,0,null,null,null,null,null,null,null,null,null,null,null,null,null,null,null,null,null,null,null,null,null,null,null,null,null,null,null,null," ",null,null,null,null,null,{"$f":"IF(AX39=AX97,\"Total\",\"Subtotal - see addendum for Total\")","v":"Total"},{"$f":"SUM(AW32:AW38)","v":0},{"$f":"SUM(AX32:AX38)","v":0},{"$f":"SUM(AY32:AY38)","v":0},{"$f":"SUM(AZ32:AZ38)","v":0},null,null,null,null,null,null,null,null,null,null,null,null,0,0]
["Have you ever been a debtor",null,null,"Ages of Dependents",null,null,null,null,null,null,null,0,0,null,null,null,null,null,null,null,null,null,null,null,null,null,null,null,null,null,null,null,null,null,null,null,null,null,null,null,null," ",null,null,null,null,null,null,null,null,null,null,null,null,null,null,null,null,null,null,null,null,null,null,0,0]
["    in bankruptcy?",null,null,"Date of Birth - Borrower",null,null,null,"Subtotals from Grain, Feed and Market Livestock Addenda page",null,null,null,0,{"$f":"'Grain, Feed and Lvstk Addenda'!F54","v":0},null,null,null,null,null,null,null,null,null,null,null,null,null,null,null,null,null,null,null,null,null,null,null,null,null,null,null,null," ",null,"Accounts Payable",null,null,null,null,null,null,null,null,null,null,null,null,null,null,null,null,null,null,null,null,0,0]
["Are you a party in a lawsuit?",null,null,"Date of Birth - Co-Borrower",null,null,null,null,"Total Value of Market Livestock",null,null,null,{"$f":"SUM(M33:M41)","v":0},null,null,null,null,null,null,null,null,null,null,null,null,null,null,null,null,null,null,null,null,null,null,null,null,null,null,null,null," ",null,"To Whom",null,"           Terms of Payment",null,null,"               Original Amount",null,null,"Balance",null,null,null,null,null,null,null,null,null,null,null,null,0,0]
["Any Contingent Liabilities?",null,null,"Off-farm Income:",null,null,null,null,null,null,null,null,null,null,null,null,null,null,null,null,null,null,null,null,null,null,null,null,null,null,null,null,null,null,null,null,null,null,null,null,null," ",null,null,null,null,null,null,null,null,null,null,null,null,null,null,null,null,null,null,null,null,null,null,0,0]
["Leased Machinery or Livestock?",null,null,"SS Income",null,null,null,"Breeding Livestock",null,null,null,null,null,null,null,null,"Total Value of Investments Not Readily Marketable",null,null,{"$f":"SUM(T38:T43)","v":0},{"$f":"SUM(U38:U43)","v":0},null,null,null,null,null,null,null,null,null,null,null,null,null,null,null,null,null,null,null,null," ",null,null,null,null,null,null,null,null,null,null,null,null,null,null,null,null,null,null,null,null,null,null,0,0]
[null,null,null,"VA benefits",null,null,null,"# of Hd.","Type of Livestock","Purchase date","Cost/hd","$ / Head","Total",null,null,null,null,null,null,null,null,null,null,null,null,null,null,null,null,null,null,null,null,null,null,null,{"$f":"IF(AN45=AN94,\"Total Machinery & Equipment\",\"Subtotal, see addendum for Total\")","v":"Total Machinery & Equipment"},null,null,{"$f":"SUM(AN6:AN44)","v":0}]
["For the purpose of securing credit from time to time this statement is furnished and is certified to be true and correct.  I (We)",null,null,null,null,null,null,null,null,null,null,null,{"$f":"H46*L46","v":0},null,null,"Life Insurance"]
["agree to notify said bank promptly of any material change herein.  The bank is authorized to verify the statements contained",null,null,null,null,null,null,null,null,null,null,null,{"$f":"H47*L47","v":0},null,null,"Name on Policy",null,"Amount","Beneficiary",null,"Cash Value",null,null,null,null,null,null,null,null,null,null,null,null,null,null,"Titled Vehicles",null,null,null,null,null,null,null,null,null,null,null,null,null,null,null,null,null,null,null,null,null,null,null,null,null,null,null,null,"Titled Vehicles"]
["herein by contacting my accountant, other creditors, and/or by information on a consumer credit report.  All information contained",null,null,null,null,null,null,null,null,null,null,null,0,null,null,null,null,null,null,null,null,null,null,null,null,null,null,null,null,null,null,null,null,null,null,null,null,null,null,null,null," ",null,null,null,null,null,null,null,null,null,null,null,null,null,null,null,null,null,null,null,null,null,null,0,{"$f":"ROUND((1-$BN$2)*AN48,-2)","v":0}]
["on this application will be held in confidence.  False statements may be subject to prosecution under Title 18 of the U.S. Code.",null,null,null,null,null,null,null,null,null,null,null,0,null,null,null,null,null,null,null,null,null,null,null,null,null,null,null,null,null,null,null,null,null,null,null,null,null,null,null,null," ",null,null,null,null,null,null,null,null,{"$f":"IF(AZ49=AZ111,\"Total\",\"Subtotal - see addendum for Total\")","v":"Total"},{"$f":"SUM(AZ43:AZ48)","v":0},null,null,null,null,null,null,null,null,null,null,null,null,0,0]
["We intend to apply for joint credit _______    _______ (initials).",null,null,null,null,null,null,null,null,null,null,null,0,null,null,null,null,null,null,null,null,null,null,null,null,null,null,null,null,null,null,null,null,null,null,null,null,null,null,null,null," ",null,null,null,null,null,null,null,null,null,null,null,null,null,null,null,null,null,null,null,null,null,null,0,0]
[null,null,null,null,null,null,null,null,null,null,null,null,0,null,null,null,null,null,null,null,null,null,null,null,null,null,null,null,null,null,null,null,null,null,null,null,null,null,null,null,null," ",null,"Taxes & Rents Due",null,null,null,null,null,null,null,null,null,null,null,null,null,null,null,null,null,null,null,null,0,0]
["Date: ____________________________________",null,null,"Signature: _________________________________",null,null,null,null,null,null,null,null,0,null,null,null,null,null,null,null,null,null,null,null,null,null,null,null,null,null,null,null,null,null,null,null,null,null,null,null,null," ",null,"Personal Taxes Due:",null,null,null,"Income Tax Due:",null,null,null,null,null,null,null,null,null,null,null,null,null,null,null,null,0,0]
[null,null,null,null,null,null,null,null,null,null,null,null,0,null,null,null,null,null,null,null,null,null,null,null,null,null,null,null,null,null,null,null,null,null,null,null,null,null,null,null,null," ",null,"Real Estate Taxes Due:",null,null,null,"Accrued Rents / Leases:",null,null,null,null,null,null,null,null,null,null,null,null,null,null,null,null,0,0]
["Witness:   ________________________________",null,null,"Signature: _________________________________",null,null,null,null,"Total Breeding Livestock",null,null,null,{"$f":"SUM(M46:M53)","v":0},null,null,null,"Total Cash Value of Life Insurance",null,null,null,{"$f":"SUM(U48:U53)","v":0},null,null,null,null,{"$f":"IF(AA54=AA111,\"Totals\",\"Subtotals - see addendum for Totals\")","v":"Totals"},{"$f":"SUM(AA27:AA53)","v":0},{"$f":"SUM(AB27:AB53)","v":0},{"$f":"SUM(AC27:AC53)","v":0},{"$f":"SUM(AD27:AD53)","v":0},{"$f":"SUM(AE27:AE53)","v":0},null,null,null,null,null,{"$f":"IF(AN54=AN111,\"Total Titled Vehicles\",\"Subtotal, see addendum for Total\")","v":"Total Titled Vehicles"},null,null,{"$f":"SUM(AN48:AN53)","v":0},null,null,null,"Other Accrued Expenses:",null,null,null,"Other:"]
[null,null,null,null,null,null,null,null,null,null,null,null,"Page 2",null,null,null,null,null,null,null,"Page 3",null,null,null,null,null,null,null,null,null,null,null,"Page 4",null,null,null,null,null,null,null,"Page 5",null,null,null,null,null,null,null,null,null,null,"Page 6",null,null,null,null,null,null,null,null,"Page 7"]
[]
[null,null,null,null,null,null,null,null,null,null,null,null,null,null,null,null,null,null,null,null,null,null,null,"Page 4 Addendum",null,null,null,null,null,null,null,null,null,null,null,"Page 5 Addendum",null,null,null,null,null,null,null,"Page 6 Addendum"]
[null,null,null,null,null,null,null,null,null,null,null,null,null,null,null,null,null,null,null,null,null,null,null,"Real Estate Owned Addendum",null,null,"Acres",null,null,null,null,null,null,null,null,"Machinery & Equipment Addendum",null,null,null,null,null,null,null,"Additional Notes Payable (Short Term)"]
[null,null,null,null,null,null,null,null,null,null,null,null,null,null,null,null,null,null,null,null,null,null,null,null,null,null,null,"Irrig.","Dry",null,null,"Value/",null,null,null,null,null,null,"Purchase","Current",null,null,null,null,null,null,"Maturity","Interest","Accrued","Current"]
[null,null,null,null,null,null,null,null,null,null,null,null,null,null,null,null,null,null,null,null,null,null,null,"Description",null,null,"Total","Crop","Crop","Pasture","Other","Acre","Value",null,null,"Year","Description",null,"Cost","Value","Liens",null,null,"To Whom","Purpose",null,"Date","Rate","Interest","Balance","Comments"]
[null,null,null,null,null,null,null,null,null,null,null,null,null,null,null,null,null,null,null,null,null,null,null,"Subtotals from Page 4",null,null,{"$f":"+AA22","v":0},{"$f":"+AB22","v":0},{"$f":"+AC22","v":0},{"$f":"+AD22","v":0},{"$f":"+AE22","v":0},null,{"$f":"+AG22","v":0},null,null,"Subtotals from Page 5",null,null,null,{"$f":"+AN45","v":0},null,null,null,"Subtotals from Page 6",null,null,null,null,{"$f":"+AW12","v":0},{"$f":"+AX12","v":0},null,null,null,null,null,null,null,null,null,null,null,null,null,null,"Machinery and Equipment Addendum"]
[null,null,null,null,null,null,null,null,null,null,null,null,null,null,null,null,null,null,null,null,null,null,null,null,null,null,null,null,null,null,null,null,{"$f":"AA62*AF62","v":0},null,null,null,null,null,null,null,null," ",null,null,null,null,null,null,null,null,null,null,null,null,null,null,null,null,null,null,null,null,null,null,0,{"$f":"ROUND((1-$BN$2)*AN62,-2)","v":0}]
[null,null,null,null,null,null,null,null,null,null,null,null,null,null,null,null,null,null,null,null,null,null,null,null,null,null,null,null,null,null,null,null,0,null,null,null,null,null,null,null,null," ",null,null,null,null,null,null,null,null,null,null,null,null,null,null,null,null,null,null,null,null,null,null,0,0]
[null,null,null,null,null,null,null,null,null,null,null,null,null,null,null,null,null,null,null,null,null,null,null,null,null,null,null,null,null,null,null,null,0,null,null,null,null,null,null,null,null," ",null,null,null,null,null,null,null,null,null,null,null,null,null,null,null,null,null,null,null,null,null,null,0,0]
[null,null,null,null,null,null,null,null,null,null,null,null,null,null,null,null,null,null,null,null,null,null,null,null,null,null,null,null,null,null,null,null,{"$f":"AA65*AF65","v":0},null,null,null,null,null,null,null,null," ",null,null,null,null,null,null,null,null,null,null,null,null,null,null,null,null,null,null,null,null,null,null,0,0]
[null,null,null,null,null,null,null,null,null,null,null,null,null,null,null,null,null,null,null,null,null,null,null,null,null,null,null,null,null,null,null,null,0,null,null,null,null,null,null,null,null," ",null,null,null,null,null,null,null,null,null,null,null,null,null,null,null,null,null,null,null,null,null,null,0,0]
[null,null,null,null,null,null,null,null,null,null,null,null,null,null,null,null,null,null,null,null,null,null,null,null,null,null,null,null,null,null,null,null,{"$f":"AA67*AF67","v":0},null,null,null,null,null,null,null,null," ",null,null,null,null,null,"Total",{"$f":"SUM(AW61:AW66)","v":0},{"$f":"SUM(AX61:AX66)","v":0},null,null,null,null,null,null,null,null,null,null,null,null,null,null,0,0]
[null,null,null,null,null,null,null,null,null,null,null,null,null,null,null,null,null,null,null,null,null,null,null,null,null,null,null,null,null,null,null,null,0,null,null,null,null,null,null,null,null," ",null,null,null,null,null,null,null,null,null,null,null,null,null,null,null,null,null,null,null,null,null,null,0,0]
[null,null,null,null,null,null,null,null,null,null,null,null,null,null,null,null,null,null,null,null,null,null,null,null,null,null,null,null,null,null,null,null,0,null,null,null,null,null,null,null,null," ",null,"Additional Intermediate Term Debt",null,null,null,null,null,null,null,null,null,null,null,null,null,null,null,null,null,null,null,null,0,0]
[null,null,null,null,null,null,null,null,null,null,null,null,null,null,null,null,null,null,null,null,null,null,null,null,null,null,null,null,null,null,null,null,0,null,null,null,null,null,null,null,null," ",null,null,null,"Pymt.","Pymt.","Interest","Accrued","Current","Due w/in","Due Beyond",null,null,null,null,null,null,null,null,null,null,null,null,0,0]
[null,null,null,null,null,null,null,null,null,null,null,null,null,null,null,null,null,null,null,null,null,null,null,null,null,null,null,null,null,null,null,null,0,null,null,null,null,null,null,null,null," ",null,"To Whom","Purpose","Amt/Freq","Dates","Rate","Interest","Balance","12 Mos.","12 Mos.",null,null,null,null,null,null,null,null,null,null,null,null,{"$f":"+AK71","v":0},0]
[null,null,null,null,null,null,null,null,null,null,null,null,null,null,null,null,null,null,null,null,null,null,null,null,null,null,null,null,null,null,null,null,0,null,null,null,null,null,null,null,null," ",null,"Subtotals from Page 6",null,null,null,null,{"$f":"+AW27","v":0},{"$f":"+AX27","v":0},{"$f":"+AY27","v":0},{"$f":"+AZ27","v":0},null,null,null,null,null,null,null,null,null,null,null,null,0,0]
[null,null,null,null,null,null,null,null,null,null,null,null,null,null,null,null,null,null,null,null,null,null,null,null,null,null,null,null,null,null,null,null,0,null,null,null,null,null,null,null,null," ",null,null,null,null,null,null,null,null,null,{"$f":"AX73-AY73","v":0},null,null,null,null,null,null,null,null,null,null,null,null,0,0]
[null,null,null,null,null,null,null,null,null,null,null,null,null,null,null,null,null,null,null,null,null,null,null,null,null,"Totals",{"$f":"SUM(AA61:AA73)","v":0},{"$f":"SUM(AB61:AB73)","v":0},{"$f":"SUM(AC61:AC73)","v":0},{"$f":"SUM(AD61:AD73)","v":0},{"$f":"SUM(AE61:AE73)","v":0},null,{"$f":"SUM(AG61:AG73)","v":0},null,null,null,null,null,null,null,null," ",null,null,null,null,null,null,null,null,null,0,null,null,null,null,null,null,null,null,null,null,null,null,0,0]
[null,null,null,null,null,null,null,null,null,null,null,null,null,null,null,null,null,null,null,null,null,null,null,null,null,null,null,null,null,null,null,null,null,null,null,null,null,null,null,null,null," ",null,null,null,null,null,null,null,null,null,0,null,null,null,null,null,null,null,null,null,null,null,null,0,0]
[null,null,null,null,null,null,null,null,null,null,null,null,null,null,null,null,null,null,null,null,null,null,null,"Real Estate Rented Addendum",null,null,"Acres",null,null,null,null,null,null,null,null,null,null,null,null,null,null," ",null,null,null,null,null,null,null,null,null,0,null,null,null,null,null,null,null,null,null,null,null,null,0,0]
[null,null,null,null,null,null,null,null,null,null,null,null,null,null,null,null,null,null,null,null,null,null,null,null,null,null,null,"Irrig.","Dry",null,null,null,null,null,null,null,null,null,null,null,null," ",null,null,null,null,null,null,null,null,null,0,null,null,null,null,null,null,null,null,null,null,null,null,0,0]
[null,null,null,null,null,null,null,null,null,null,null,null,null,null,null,null,null,null,null,null,null,null,null,"Description",null,"Owner's Name","Total","Crop","Crop","Pasture","Other","Rental Terms",null,null,null,null,null,null,null,null,null," ",null,null,null,null,null,null,null,null,null,0,null,null,null,null,null,null,null,null,null,null,null,null,0,0]
[null,null,null,null,null,null,null,null,null,null,null,null,null,null,null,null,null,null,null,null,null,null,null,"Subtotals from page 4",null,null,{"$f":"+AA54","v":0},{"$f":"+AB54","v":0},{"$f":"+AC54","v":0},{"$f":"+AD54","v":0},{"$f":"+AE54","v":0},null,null,null,null,null,null,null,null,null,null," ",null,null,null,null,null,null,null,null,null,0,null,null,null,null,null,null,null,null,null,null,null,null,0,0]
[null,null,null,null,null,null,null,null,null,null,null,null,null,null,null,null,null,null,null,null,null,null,null,null,null,null,null,null,null,null,null,null,null,null,null,null,null,null,null,null,null," ",null,null,null,null,null,null,null,null,null,0,null,null,null,null,null,null,null,null,null,null,null,null,0,0]
[null,null,null,null,null,null,null,null,null,null,null,null,null,null,null,null,null,null,null,null,null,null,null,null,null,null,null,null,null,null,null,null,null,null,null,null,null,null,null,null,null," ",null,null,null,null,null,null,null,null,null,0,null,null,null,null,null,null,null,null,null,null,null,null,0,0]
[null,null,null,null,null,null,null,null,null,null,null,null,null,null,null,null,null,null,null,null,null,null,null,null,null,null,null,null,null,null,null,null,null,null,null,null,null,null,null,null,null," ",null,null,null,null,null,null,null,null,null,0,null,null,null,null,null,null,null,null,null,null,null,null,0,0]
[null,null,null,null,null,null,null,null,null,null,null,null,null,null,null,null,null,null,null,null,null,null,null,null,null,null,null,null,null,null,null,null,null,null,null,null,null,null,null,null,null," ",null,null,null,null,null,null,null,null,null,0,null,null,null,null,null,null,null,null,null,null,null,null,0,0]
[null,null,null,null,null,null,null,null,null,null,null,null,null,null,null,null,null,null,null,null,null,null,null,null,null,null,null,null,null,null,null,null,null,null,null,null,null,null,null,null,null," ",null,null,null,null,null,null,null,null,null,0,null,null,null,null,null,null,null,null,null,null,null,null,0,0]
[null,null,null,null,null,null,null,null,null,null,null,null,null,null,null,null,null,null,null,null,null,null,null,null,null,null,null,null,null,null,null,null,null,null,null,null,null,null,null,null,null," ",null,null,null,null,null,"Total",{"$f":"SUM(AW72:AW84)","v":0},{"$f":"SUM(AX72:AX84)","v":0},{"$f":"SUM(AY72:AY84)","v":0},{"$f":"SUM(AZ72:AZ84)","v":0},null,null,null,null,null,null,null,null,null,null,null,null,0,0]
[null,null,null,null,null,null,null,null,null,null,null,null,null,null,null,null,null,null,null,null,null,null,null,null,null,null,null,null,null,null,null,null,null,null,null,null,null,null,null,null,null," ",null,null,null,null,null,null,null,null,null,null,null,null,null,null,null,null,null,null,null,null,null,null,0,0]
[null,null,null,null,null,null,null,null,null,null,null,null,null,null,null,null,null,null,null,null,null,null,null,null,null,null,null,null,null,null,null,null,null,null,null,null,null,null,null,null,null," ",null,"Additional Long Term Debt",null,null,null,null,null,null,null,null,null,null,null,null,null,null,null,null,null,null,null,null,0,0]
[null,null,null,null,null,null,null,null,null,null,null,null,null,null,null,null,null,null,null,null,null,null,null,null,null,null,null,null,null,null,null,null,null,null,null,null,null,null,null,null,null," ",null,null,null,"Pymt.","Pymt.","Interest","Accrued","Current","Due w/in","Due Beyond",null,null,null,null,null,null,null,null,null,null,null,null,0,0]
[null,null,null,null,null,null,null,null,null,null,null,null,null,null,null,null,null,null,null,null,null,null,null,null,null,null,null,null,null,null,null,null,null,null,null,null,null,null,null,null,null," ",null,"To Whom","Purpose","Amt/Freq","Dates","Rate","Interest","Balance","12 Mos.","12 Mos.",null,null,null,null,null,null,null,null,null,null,null,null,0,0]
[null,null,null,null,null,null,null,null,null,null,null,null,null,null,null,null,null,null,null,null,null,null,null,null,null,null,null,null,null,null,null,null,null,null,null,null,null,null,null,null,null," ",null,"Subtotals from Page 6",null,null,null,null,{"$f":"+AW39","v":0},{"$f":"+AX39","v":0},{"$f":"+AY39","v":0},{"$f":"+AZ39","v":0},null,null,null,null,null,null,null,null,null,null,null,null,0,0]
[null,null,null,null,null,null,null,null,null,null,null,null,null,null,null,null,null,null,null,null,null,null,null,null,null,null,null,null,null,null,null,null,null,null,null,null,null,null,null,null,null," ",null,null,null,null,null,null,null,null,null,{"$f":"AX91-AY91","v":0},null,null,null,null,null,null,null,null,null,null,null,null,0,0]
[null,null,null,null,null,null,null,null,null,null,null,null,null,null,null,null,null,null,null,null,null,null,null,null,null,null,null,null,null,null,null,null,null,null,null,null,null,null,null,null,null," ",null,null,null,null,null,null,null,null,null,0,null,null,null,null,null,null,null,null,null,null,null,null,0,0]
[null,null,null,null,null,null,null,null,null,null,null,null,null,null,null,null,null,null,null,null,null,null,null,null,null,null,null,null,null,null,null,null,null,null,null,"Subtotals from Machinery and Equipment Addenda pages",null,null,null,{"$f":"+'Machinery Addenda'!E160","v":0},null," ",null,null,null,null,null,null,null,null,null,0,null,null,null,null,null,null,null,null,null,null,null,null,{"$f":"+AK93","v":0}]
[null,null,null,null,null,null,null,null,null,null,null,null,null,null,null,null,null,null,null,null,null,null,null,null,null,null,null,null,null,null,null,null,null,null,null,null,"Total Machinery & Equipment",null,null,{"$f":"SUM(AN61:AN93)","v":0},null,null,null,null,null,null,null,null,null,null,null,0]
[null,null,null,null,null,null,null,null,null,null,null,null,null,null,null,null,null,null,null,null,null,null,null,null,null,null,null,null,null,null,null,null,null,null,null,null,null,null,null,null,null,null,null,null,null,null,null,null,null,null,null,0]
[null,null,null,null,null,null,null,null,null,null,null,null,null,null,null,null,null,null,null,null,null,null,null,null,null,null,null,null,null,null,null,null,null,null,null,"Titled Vehicle Addendum",null,null,null,null,null,null,null,null,null,null,null,null,null,null,null,0]
[null,null,null,null,null,null,null,null,null,null,null,null,null,null,null,null,null,null,null,null,null,null,null,null,null,null,null,null,null,null,null,null,null,null,null,"Subtotals from Page 5",null,null,null,{"$f":"+AN54","v":0},null,null,null,null,null,null,null,"Total ",{"$f":"SUM(AW90:AW96)","v":0},{"$f":"SUM(AX90:AX96)","v":0},{"$f":"SUM(AY90:AY96)","v":0},{"$f":"SUM(AZ90:AZ96)","v":0},null,null,null,null,null,null,null,null,null,null,null,null,"Titled Vehicles - Addendum"]
[null,null,null,null,null,null,null,null,null,null,null,null,null,null,null,null,null,null,null,null,null,null,null,null,null,null,null,null,null,null,null,null,null,null,null,null,null,null,null,null,null," ",null,null,null,null,null,null,null,null,null,null,null,null,null,null,null,null,null,null,null,null,null,null,0,{"$f":"ROUND((1-$BN$2)*AN98,-2)","v":0}]
[null,null,null,null,null,null,null,null,null,null,null,null,null,null,null,null,null,null,null,null,null,null,null,null,null,null,null,null,null,null,null,null,null,null,null,null,null,null,null,null,null," ",null,"Additional Accounts Payable",null,null,null,null,null,null,null,null,null,null,null,null,null,null,null,null,null,null,null,null,0,0]
[null,null,null,null,null,null,null,null,null,null,null,null,null,null,null,null,null,null,null,null,null,null,null,null,null,null,null,null,null,null,null,null,null,null,null,null,null,null,null,null,null," ",null,"To Whom",null,"           Terms of Payment",null,null,"               Original Amount",null,null,"Balance",null,null,null,null,null,null,null,null,null,null,null,null,0,0]
[null,null,null,null,null,null,null,null,null,null,null,null,null,null,null,null,null,null,null,null,null,null,null,null,null,null,null,null,null,null,null,null,null,null,null,null,null,null,null,null,null," ",null,"Subtotals from Page 6",null,null,null,null,null,null,null,{"$f":"+AZ49","v":0},null,null,null,null,null,null,null,null,null,null,null,null,0,0]
[null,null,null,null,null,null,null,null,null,null,null,null,null,null,null,null,null,null,null,null,null,null,null,null,null,null,null,null,null,null,null,null,null,null,null,null,null,null,null,null,null," ",null,null,null,null,null,null,null,null,null,null,null,null,null,null,null,null,null,null,null,null,null,null,0,0]
[null,null,null,null,null,null,null,null,null,null,null,null,null,null,null,null,null,null,null,null,null,null,null,null,null,null,null,null,null,null,null,null,null,null,null,null,null,null,null,null,null," ",null,null,null,null,null,null,null,null,null,null,null,null,null,null,null,null,null,null,null,null,null,null,0,0]
[null,null,null,null,null,null,null,null,null,null,null,null,null,null,null,null,null,null,null,null,null,null,null,null,null,null,null,null,null,null,null,null,null,null,null,null,null,null,null,null,null," ",null,null,null,null,null,null,null,null,null,null,null,null,null,null,null,null,null,null,null,null,null,null,0,0]
[null,null,null,null,null,null,null,null,null,null,null,null,null,null,null,null,null,null,null,null,null,null,null,null,null,null,null,null,null,null,null,null,null,null,null,null,null,null,null,null,null," ",null,null,null,null,null,null,null,null,null,null,null,null,null,null,null,null,null,null,null,null,null,null,0,0]
[null,null,null,null,null,null,null,null,null,null,null,null,null,null,null,null,null,null,null,null,null,null,null,null,null,null,null,null,null,null,null,null,null,null,null,null,null,null,null,null,null," ",null,null,null,null,null,null,null,null,null,null,null,null,null,null,null,null,null,null,null,null,null,null,0,0]
[null,null,null,null,null,null,null,null,null,null,null,null,null,null,null,null,null,null,null,null,null,null,null,null,null,null,null,null,null,null,null,null,null,null,null,null,null,null,null,null,null," ",null,null,null,null,null,null,null,null,null,null,null,null,null,null,null,null,null,null,null,null,null,null,0,0]
[null,null,null,null,null,null,null,null,null,null,null,null,null,null,null,null,null,null,null,null,null,null,null,null,null,null,null,null,null,null,null,null,null,null,null,null,null,null,null,null,null," ",null,null,null,null,null,null,null,null,null,null,null,null,null,null,null,null,null,null,null,null,null,null,0,0]
[null,null,null,null,null,null,null,null,null,null,null,null,null,null,null,null,null,null,null,null,null,null,null,null,null,null,null,null,null,null,null,null,null,null,null,null,null,null,null,null,null," ",null,null,null,null,null,null,null,null,null,null,null,null,null,null,null,null,null,null,null,null,null,null,0,0]
[null,null,null,null,null,null,null,null,null,null,null,null,null,null,null,null,null,null,null,null,null,null,null,null,null,null,null,null,null,null,null,null,null,null,null,"Subtotals from Titled Vehicle Addenda pages",null,null,null,{"$f":"+'Titled Vehicle Addenda'!E160","v":0},null," ",null,null,null,null,null,null,null,null,null,null,null,null,null,null,null,null,null,null,null,null,null,null,0]
[null,null,null,null,null,null,null,null,null,null,null,null,null,null,null,null,null,null,null,null,null,null,null,null,null,"Totals",{"$f":"SUM(AA79:AA110)","v":0},{"$f":"SUM(AB79:AB110)","v":0},{"$f":"SUM(AC79:AC110)","v":0},{"$f":"SUM(AD79:AD110)","v":0},{"$f":"SUM(AE79:AE110)","v":0},null,null,null,null,null,"Total Titled Vehicles",null,null,{"$f":"SUM(AN97:AN110)","v":0},null,null,null,null,null,null,null,null,null,null,"Total",{"$f":"SUM(AZ101:AZ110)","v":0}]
[null,null,null,null,null,null,null,null,null,null,null,null,null,null,null,null,null,null,null,null,null,null,null,null,null,null,null,null,null,null,null,null,"Page 4 Addendum",null,null,null,null,null,null,null,"Page 5 Addendum 1",null,null,null,null,null,null,null,null,null,null,"Page 6 Addendum 1"]

{"sheet":"Grain, Feed and Lvstk Addenda","index":2,"n_rows":55,"n_cols":6,"rows_kept":55,"cut":false,"hidden":true,"merged":[[13,0,13,1],[14,0,14,1],[15,0,15,1],[16,0,16,1],[17,0,17,1],[18,0,18,1],[35,0,35,1],[36,0,36,1],[37,0,37,1],[38,0,38,1],[24,0,24,1],[25,0,25,1],[19,0,19,1],[39,0,39,1],[7,0,7,1],[8,0,8,1],[9,0,9,1],[10,0,10,1],[11,0,11,1],[26,0,26,1],[27,0,27,1],[31,0,31,1],[32,0,32,1],[33,0,33,1],[34,0,34,1],[20,0,20,1],[21,0,21,1],[22,0,22,1],[23,0,23,1],[12,0,12,1],[0,0,0,5],[3,0,3,1],[4,0,4,1],[5,0,5,1],[6,0,6,1]]}
["Grain and Feed held to sell addenda"]
[]
["Grain and Feed held to sell"]
["Description",null,"Quantity","Unit","$ / Unit","Total"]
[null,null,null,null,null,{"$f":"C5*E5","v":0}]
[null,null,null,null,null,0]
[null,null,null,null,null,0]
[null,null,null,null,null,0]
[null,null,null,null,null,0]
[null,null,null,null,null,0]
[null,null,null,null,null,0]
[null,null,null,null,null,0]
[null,null,null,null,null,0]
[null,null,null,null,null,0]
[null,null,null,null,null,0]
[null,null,null,null,null,0]
[null,null,null,null,null,0]
[null,null,null,null,null,0]
[null,null,null,null,null,0]
[null,null,null,null,null,0]
[null,null,null,null,null,0]
[null,null,null,null,null,0]
[null,null,null,null,null,0]
[null,null,null,null,null,0]
[null,null,null,null,null,0]
[null,null,null,null,null,0]
[null,null,null,null,null,0]
[null,null,null,null,null,0]
[null,"Subtotal ",null,null,null,{"$f":"SUM(F5:F28)","v":0}]
[]
["Grain and Feed held to feed"]
["Description",null,"Quantity","Unit","$ / Unit","Total"]
[null,null,null,null,null,{"$f":"C33*E33","v":0}]
[null,null,null,null,null,{"$f":"C34*E34","v":0}]
[null,null,null,null,null,0]
[null,null,null,null,null,0]
[null,null,null,null,null,0]
[null,null,null,null,null,0]
[null,null,null,null,null,0]
[null,null,null,null,null,0]
[null,"Subtotal ",null,null,null,{"$f":"SUM(F33:F40)","v":0}]
[]
["Market Livestock"]
["# of Hd.","Type of Livestock","Average Wght.","$ / CWT","$ / Head","Total"]
[null,null,null,null,{"$f":"+C45*D45/100","v":0},{"$f":"A45*E45","v":0}]
[null,null,null,null,{"$f":"C46*D46/100","v":0},{"$f":"A46*E46","v":0}]
[null,null,null,null,0,0]
[null,null,null,null,0,0]
[null,null,null,null,0,0]
[null,null,null,null,0,0]
[null,null,null,null,0,0]
[null,null,null,null,0,0]
[null,null,null,null,0,0]
[null,"Subtotal ",null,null,null,{"$f":"SUM(F45:F53)","v":0}]
[null,null,null,null,null,"Additional Grain, Feed and Market Livestock Addendum"]

{"sheet":"Machinery Addenda","index":3,"n_rows":161,"n_cols":10,"rows_kept":161,"cut":false,"hidden":true,"merged":[[112,0,112,2],[0,0,0,5],[3,1,3,2],[54,0,54,5],[57,1,57,2],[108,0,108,5],[111,1,111,2],[58,0,58,2]]}
["Machinery and Equipment Addenda",null,null,null,null,null,null,null,"Percentage to depreciate:",0.1]
[]
[null,null,null,"Purchase","Current",null,null,null,"Depreciated Values"]
["Year","Description",null,"Cost","Value","Liens",null,null,"(rounded to 100's)"]
[" ",null,null,null,0,null," ",null,{"$f":"ROUND((1-$J$1)*E5,-2)","v":0}]
[null,null,null,null,0,null," ",null,0]
[null,null,null,null,0,null," ",null,0]
[null,null,null,null,0,null," ",null,0]
[null,null,null,null,0,null," ",null,0]
[null,null,null,null,0,null," ",null,0]
[null,null,null,null,0,null," ",null,0]
[null,null,null,null,0,null," ",null,0]
[null,null,null,null,0,null," ",null,0]
[null,null,null,null,0,null," ",null,0]
[null,null,null,null,0,null," ",null,0]
[null,null,null,null,0,null," ",null,0]
[null,null,null,null,0,null," ",null,0]
[null,null,null,null,0,null," ",null,0]
[null,null,null,null,0,null," ",null,0]
[null,null,null,null,0,null," ",null,0]
[null,null,null,null,0,null," ",null,0]
[null,null,null,null,0,null," ",null,0]
[null,null,null,null,0,null," ",null,0]
[null,null,null,null,0,null," ",null,0]
[null,null,null,null,0,null," ",null,0]
[null,null,null,null,0,null," ",null,0]
[null,null,null,null,0,null," ",null,0]
[null,null,null,null,0,null," ",null,0]
[null,null,null,null,0,null," ",null,0]
[null,null,null,null,0,null," ",null,0]
[null,null,null,null,0,null," ",null,0]
[null,null,null,null,0,null," ",null,0]
[null,null,null,null,0,null," ",null,0]
[null,null,null,null,0,null," ",null,0]
[null,null,null,null,0,null," ",null,0]
[null,null,null,null,0,null," ",null,0]
[null,null,null,null,0,null," ",null,0]
[null,null,null,null,0,null," ",null,0]
[null,null,null,null,0,null," ",null,0]
[null,null,null,null,0,null," ",null,0]
[null,null,null,null,0,null," ",null,0]
[null,null,null,null,0,null," ",null,0]
[null,null,null,null,0,null," ",null,0]
[null,null,null,null,0,null," ",null,0]
[null,null,null,null,0,null," ",null,0]
[null,null,null,null,0,null," ",null,0]
[null,null,null,null,0,null," ",null,0]
[null,null,null,null,0,null," ",null,0]
[null,null,null,null,0,null," ",null,0]
[null,null,null,null,0,null," ",null,0]
[null,null,null,null,0,null," ",null,0]
[null,"Total",null,null,{"$f":"SUM(E5:E51)","v":0},null," "]
[null,null,null,null,null,"Additional Machinery and Equipment Addendum 2"," "]
[null,null,null,null,null,null," "]
["Machinery and Equipment Addenda",null,null,null,null,null," "]
[null,null,null,null,null,null," "]
[null,null,null,"Purchase","Current",null," "]
["Year","Description",null,"Cost","Value","Liens"," "]
["Subtotal from Addendum 2",null,null,null,{"$f":"+E52","v":0},null," "]
[null,null,null,null,null,null," ",null,{"$f":"ROUND((1-$J$1)*E60,-2)","v":0}]
[null,null,null,null,null,null," ",null,0]
[null,null,null,null,null,null," ",null,0]
[null,null,null,null,null,null," ",null,0]
[null,null,null,null,null,null," ",null,0]
[null,null,null,null,null,null," ",null,0]
[null,null,null,null,null,null," ",null,0]
[null,null,null,null,null,null," ",null,0]
[null,null,null,null,null,null," ",null,0]
[null,null,null,null,null,null," ",null,0]
[null,null,null,null,null,null," ",null,0]
[null,null,null,null,null,null," ",null,0]
[null,null,null,null,null,null," ",null,0]
[null,null,null,null,null,null," ",null,0]
[null,null,null,null,null,null," ",null,0]
[null,null,null,null,null,null," ",null,0]
[null,null,null,null,null,null," ",null,0]
[null,null,null,null,null,null," ",null,0]
[null,null,null,null,null,null," ",null,0]
[null,null,null,null,null,null," ",null,0]
[null,null,null,null,null,null," ",null,0]
[null,null,null,null,null,null," ",null,0]
[null,null,null,null,null,null," ",null,0]
[null,null,null,null,null,null," ",null,0]
[null,null,null,null,null,null," ",null,0]
[null,null,null,null,null,null," ",null,0]
[null,null,null,null,null,null," ",null,0]
[null,null,null,null,null,null," ",null,0]
[null,null,null,null,null,null," ",null,0]
[null,null,null,null,null,null," ",null,0]
[null,null,null,null,null,null," ",null,0]
[null,null,null,null,null,null," ",null,0]
[null,null,null,null,null,null," ",null,0]
[null,null,null,null,null,null," ",null,0]
[null,null,null,null,null,null," ",null,0]
[null,null,null,null,null,null," ",null,0]
[null,null,null,null,null,null," ",null,0]
[null,null,null,null,null,null," ",null,0]
[null,null,null,null,null,null," ",null,0]
[null,null,null,null,null,null," ",null,0]
[null,null,null,null,null,null," ",null,0]
[null,null,null,null,null,null," ",null,0]
[null,null,null,null,null,null," ",null,0]
[null,null,null,null,null,null," ",null,0]
[null,null,null,null,null,null," ",null,0]
[null,null,null,null,null,null," ",null,0]
[null,"Total",null,null,{"$f":"SUM(E59:E105)","v":0},null," "]
[null,null,null,null,null,"Additional Machinery and Equipment Addendum 3"," "]
[null,null,null,null,null,null," "]
["Machinery and Equipment Addenda",null,null,null,null,null," "]
[null,null,null,null,null,null," "]
[null,null,null,"Purchase","Current",null," "]
["Year","Description",null,"Cost","Value","Liens"," "]
["Subtotal from Addendum 3",null,null,null,{"$f":"+E106","v":0},null," "]
[null,null,null,null,null,null," ",null,{"$f":"ROUND((1-$J$1)*E114,-2)","v":0}]
[null,null,null,null,null,null," ",null,0]
[null,null,null,null,null,null," ",null,0]
[null,null,null,null,null,null," ",null,0]
[null,null,null,null,null,null," ",null,0]
[null,null,null,null,null,null," ",null,0]
[null,null,null,null,null,null," ",null,0]
[null,null,null,null,null,null," ",null,0]
[null,null,null,null,null,null," ",null,0]
[null,null,null,null,null,null," ",null,0]
[null,null,null,null,null,null," ",null,0]
[null,null,null,null,null,null," ",null,0]
[null,null,null,null,null,null," ",null,0]
[null,null,null,null,null,null," ",null,0]
[null,null,null,null,null,null," ",null,0]
[null,null,null,null,null,null," ",null,0]
[null,null,null,null,null,null," ",null,0]
[null,null,null,null,null,null," ",null,0]
[null,null,null,null,null,null," ",null,0]
[null,null,null,null,null,null," ",null,0]
[null,null,null,null,null,null," ",null,0]
[null,null,null,null,null,null," ",null,0]
[null,null,null,null,null,null," ",null,0]
[null,null,null,null,null,null," ",null,0]
[null,null,null,null,null,null," ",null,0]
[null,null,null,null,null,null," ",null,0]
[null,null,null,null,null,null," ",null,0]
[null,null,null,null,null,null," ",null,0]
[null,null,null,null,null,null," ",null,0]
[null,null,null,null,null,null," ",null,0]
[null,null,null,null,null,null," ",null,0]
[null,null,null,null,null,null," ",null,0]
[null,null,null,null,null,null," ",null,0]
[null,null,null,null,null,null," ",null,0]
[null,null,null,null,null,null," ",null,0]
[null,null,null,null,null,null," ",null,0]
[null,null,null,null,null,null," ",null,0]
[null,null,null,null,null,null," ",null,0]
[null,null,null,null,null,null," ",null,0]
[null,null,null,null,null,null," ",null,0]
[null,null,null,null,null,null," ",null,0]
[null,null,null,null,null,null," ",null,0]
[null,null,null,null,null,null," ",null,0]
[null,null,null,null,null,null," ",null,0]
[null,null,null,null,null,null," ",null,0]
[null,null,null,null,null,null," ",null,0]
[null,"Total",null,null,{"$f":"SUM(E113:E159)","v":0},null," "]
[null,null,null,null,null,"Additional Machinery and Equipment Addendum 4"]

{"sheet":"Titled Vehicle Addenda","index":4,"n_rows":161,"n_cols":10,"rows_kept":161,"cut":false,"hidden":true,"merged":[[111,1,111,2],[112,0,112,2],[0,0,0,5],[3,1,3,2],[54,0,54,5],[57,1,57,2],[58,0,58,2],[108,0,108,5]]}
["Titled Vehicle Addenda",null,null,null,null,null,null,null,"Percentage to depreciate:",0.1]
[]
[null,null,null,"Purchase","Current",null,null,null,"Depreciated Values"]
["Year","Description",null,"Cost","Value","Liens",null,null,"(rounded to 100's)"]
[" ",null,null,null,null,null," ",null,{"$f":"ROUND((1-$J$1)*E5,-2)","v":0}]
[null,null,null,null,null,null," ",null,0]
[null,null,null,null,null,null," ",null,0]
[null,null,null,null,null,null," ",null,0]
[null,null,null,null,null,null," ",null,0]
[null,null,null,null,null,null," ",null,0]
[null,null,null,null,null,null," ",null,0]
[null,null,null,null,null,null," ",null,0]
[null,null,null,null,null,null," ",null,0]
[null,null,null,null,null,null," ",null,0]
[null,null,null,null,null,null," ",null,0]
[null,null,null,null,null,null," ",null,0]
[null,null,null,null,null,null," ",null,0]
[null,null,null,null,null,null," ",null,0]
[null,null,null,null,null,null," ",null,0]
[null,null,null,null,null,null," ",null,0]
[null,null,null,null,null,null," ",null,0]
[null,null,null,null,null,null," ",null,0]
[null,null,null,null,null,null," ",null,0]
[null,null,null,null,null,null," ",null,0]
[null,null,null,null,null,null," ",null,0]
[null,null,null,null,null,null," ",null,0]
[null,null,null,null,null,null," ",null,0]
[null,null,null,null,null,null," ",null,0]
[null,null,null,null,null,null," ",null,0]
[null,null,null,null,null,null," ",null,0]
[null,null,null,null,null,null," ",null,0]
[null,null,null,null,null,null," ",null,0]
[null,null,null,null,null,null," ",null,0]
[null,null,null,null,null,null," ",null,0]
[null,null,null,null,null,null," ",null,0]
[null,null,null,null,null,null," ",null,0]
[null,null,null,null,null,null," ",null,0]
[null,null,null,null,null,null," ",null,0]
[null,null,null,null,null,null," ",null,0]
[null,null,null,null,null,null," ",null,0]
[null,null,null,null,null,null," ",null,0]
[null,null,null,null,null,null," ",null,0]
[null,null,null,null,null,null," ",null,0]
[null,null,null,null,null,null," ",null,0]
[null,null,null,null,null,null," ",null,0]
[null,null,null,null,null,null," ",null,0]
[null,null,null,null,null,null," ",null,0]
[null,null,null,null,null,null," ",null,0]
[null,null,null,null,null,null," ",null,0]
[null,null,null,null,null,null," ",null,0]
[null,null,null,null,null,null," ",null,0]
[null,"Total",null,null,{"$f":"SUM(E5:E51)","v":0},null," "]
[null,null,null,null,null,"Additional Titled Vehicle Addendum 2"," "]
[null,null,null,null,null,null," "]
["Titled Vehicle Addenda",null,null,null,null,null," "]
[null,null,null,null,null,null," "]
[null,null,null,"Purchase","Current",null," "]
["Year","Description",null,"Cost","Value","Liens"," "]
["Subtotal from Addendum 2",null,null,null,{"$f":"+E52","v":0},null," "]
[null,null,null,null,null,null," ",null,{"$f":"ROUND((1-$J$1)*E60,-2)","v":0}]
[null,null,null,null,null,null," ",null,0]
[null,null,null,null,null,null," ",null,0]
[null,null,null,null,null,null," ",null,0]
[null,null,null,null,null,null," ",null,0]
[null,null,null,null,null,null," ",null,0]
[null,null,null,null,null,null," ",null,0]
[null,null,null,null,null,null," ",null,0]
[null,null,null,null,null,null," ",null,0]
[null,null,null,null,null,null," ",null,0]
[null,null,null,null,null,null," ",null,0]
[null,null,null,null,null,null," ",null,0]
[null,null,null,null,null,null," ",null,0]
[null,null,null,null,null,null," ",null,0]
[null,null,null,null,null,null," ",null,0]
[null,null,null,null,null,null," ",null,0]
[null,null,null,null,null,null," ",null,0]
[null,null,null,null,null,null," ",null,0]
[null,null,null,null,null,null," ",null,0]
[null,null,null,null,null,null," ",null,0]
[null,null,null,null,null,null," ",null,0]
[null,null,null,null,null,null," ",null,0]
[null,null,null,null,null,null," ",null,0]
[null,null,null,null,null,null," ",null,0]
[null,null,null,null,null,null," ",null,0]
[null,null,null,null,null,null," ",null,0]
[null,null,null,null,null,null," ",null,0]
[null,null,null,null,null,null," ",null,0]
[null,null,null,null,null,null," ",null,0]
[null,null,null,null,null,null," ",null,0]
[null,null,null,null,null,null," ",null,0]
[null,null,null,null,null,null," ",null,0]
[null,null,null,null,null,null," ",null,0]
[null,null,null,null,null,null," ",null,0]
[null,null,null,null,null,null," ",null,0]
[null,null,null,null,null,null," ",null,0]
[null,null,null,null,null,null," ",null,0]
[null,null,null,null,null,null," ",null,0]
[null,null,null,null,null,null," ",null,0]
[null,null,null,null,null,null," ",null,0]
[null,null,null,null,null,null," ",null,0]
[null,null,null,null,null,null," ",null,0]
[null,null,null,null,null,null," ",null,0]
[null,null,null,null,null,null," ",null,0]
[null,null,null,null,null,null," ",null,0]
[null,null,null,null,null,null," ",null,0]
[null,"Total",null,null,{"$f":"SUM(E59:E105)","v":0},null," "]
[null,null,null,null,null,"Additional Titled Vehicle Addendum 3"," "]
[null,null,null,null,null,null," "]
["Titled Vehicle Addenda",null,null,null,null,null," "]
[null,null,null,null,null,null," "]
[null,null,null,"Purchase","Current",null," "]
["Year","Description",null,"Cost","Value","Liens"," "]
["Subtotal from Addendum 3",null,null,null,{"$f":"+E106","v":0},null," "]
[null,null,null,null,null,null," ",null,{"$f":"ROUND((1-$J$1)*E114,-2)","v":0}]
[null,null,null,null,null,null," ",null,0]
[null,null,null,null,null,null," ",null,0]
[null,null,null,null,null,null," ",null,0]
[null,null,null,null,null,null," ",null,0]
[null,null,null,null,null,null," ",null,0]
[null,null,null,null,null,null," ",null,0]
[null,null,null,null,null,null," ",null,0]
[null,null,null,null,null,null," ",null,0]
[null,null,null,null,null,null," ",null,0]
[null,null,null,null,null,null," ",null,0]
[null,null,null,null,null,null," ",null,0]
[null,null,null,null,null,null," ",null,0]
[null,null,null,null,null,null," ",null,0]
[null,null,null,null,null,null," ",null,0]
[null,null,null,null,null,null," ",null,0]
[null,null,null,null,null,null," ",null,0]
[null,null,null,null,null,null," ",null,0]
[null,null,null,null,null,null," ",null,0]
[null,null,null,null,null,null," ",null,0]
[null,null,null,null,null,null," ",null,0]
[null,null,null,null,null,null," ",null,0]
[null,null,null,null,null,null," ",null,0]
[null,null,null,null,null,null," ",null,0]
[null,null,null,null,null,null," ",null,0]
[null,null,null,null,null,null," ",null,0]
[null,null,null,null,null,null," ",null,0]
[null,null,null,null,null,null," ",null,0]
[null,null,null,null,null,null," ",null,0]
[null,null,null,null,null,null," ",null,0]
[null,null,null,null,null,null," ",null,0]
[null,null,null,null,null,null," ",null,0]
[null,null,null,null,null,null," ",null,0]
[null,null,null,null,null,null," ",null,0]
[null,null,null,null,null,null," ",null,0]
[null,null,null,null,null,null," ",null,0]
[null,null,null,null,null,null," ",null,0]
[null,null,null,null,null,null," ",null,0]
[null,null,null,null,null,null," ",null,0]
[null,null,null,null,null,null," ",null,0]
[null,null,null,null,null,null," ",null,0]
[null,null,null,null,null,null," ",null,0]
[null,null,null,null,null,null," ",null,0]
[null,null,null,null,null,null," ",null,0]
[null,null,null,null,null,null," ",null,0]
[null,null,null,null,null,null," ",null,0]
[null,"Total",null,null,{"$f":"SUM(E113:E159)","v":0},null," "]
[null,null,null,null,null,"Additional Titled Vehicle Addendum 4"]